[Event "79th LOTTO Polish-ch 2022"]
[Site "Kruszwica"]
[Date "2022.05.09"]
[Round "1.3"]
[White "Warakomski, Tomasz"]
[Black "Bartel, Mateusz"]
[Result "1/2-1/2"]
[ECO "A10"]
[WhiteElo "2534"]
[BlackElo "2619"]
[Annotator "TA"]
[PlyCount "154"]
[EventDate "2022.05.10"]
[EventType "k.o."]
[EventCountry "POL"]
[SourceTitle "playchess.com"]
[Source "ChessBase"]
[SourceQuality "1"]
[TimeControl "40/5400+30:1800+30"]

{[%evp 9,154,16,22,24,22,10,25,18,32,29,31,33,22,21,19,0,0,0,58,43,50,46,67,72,80,58,95,39,43,10,4,8,8,8,4,4,4,4,0,5,14,6,63,64,60,62,71,64,106,88,107,77,76,77,87,76,82,87,89,88,112,75,72,102,110,81,98,26,63,21,72,0,0,0,0,0,0,0,24,10,10,10,10,0,0,0,0,0,0,0,0,0,0,0,0,0,0,0,0,0,0,0,0,0,0,0,0,0,0,0,0,0,0,0,0,0,0,0,0,0,0,0,0,0,0,0,0,0,0,0,0,0,0,0,0,0,0,0,0,0,0,0,0,0,0,0,0]} 1. c4 {[%emt 0:00:05]} b6 {[%emt 0:01:44]} 2. Nc3 {[%emt 0:00:47]} Bb7 {[%emt 0:00:05]} 3. e4 {[%emt 0:01:07]} e5 {[%emt 0:01:13]} 4. a3 {[%emt 0:07:14]} Nc6 {[%emt 0:05:24]} 5. d3 {[%emt 0:03:16]} a5 {[%emt 0:00:48]} 6. Nf3 {[%emt 0:05:16] A10: English Opening: Unusual Replies for Black.} Bc5 {[%emt 0:01:10]} 7. g3 {[%emt 0:00:12]} Nge7 {[%emt 0:03:11]} 8. Bg2 {[%emt 0:01:36] White has an edge.} O-O {[%emt 0:00:08]} 9. O-O {[%emt 0:00:04]} d6 {[%emt 0:00:23]} 10. Rb1 {[%emt 0:04:02]} Qd7 {[%emt 0:03:57]} 11. Nh4 {[%emt 0:05:32]} Bd4 {[%emt 0:06:50] [#]} 12. Kh1 $146 {[%emt 0:15:36]} ({Predecessor:} 12. Nb5 a4 13. Nxd4 Nxd4 14. Be3 Nb3 15. f4 b5 16. cxb5 Qxb5 17. fxe5 dxe5 18. Nf5 Nxf5 19. Rxf5 {½-½ (73) Carrera Perez,F (2239)-Rahal,M (2318) Altea 2021}) 12... Ng6 {[%emt 0:17:44]} 13. Nf5 {[%emt 0:06:03]} Nce7 {[%emt 0:01:01]} (13... Bxc3 $11 14. Qg4 (14. bxc3 Nce7 $11) 14... Kh8 15. bxc3 Nce7) 14. Nxd4 $14 {[%emt 0:02:30]} exd4 {[%emt 0:00:11]} 15. Nd5 {[%emt 0:00:40]} Nxd5 {[%emt 0:04:29]} 16. cxd5 {[%emt 0:04:10]} Ne7 {[%emt 0:17:09]} 17. b4 {[%emt 0:04:57]} Ba6 {[%emt 0:01:20]} 18. bxa5 {[%emt 0:11:27]} (18. f4 $16) 18... bxa5 {[%emt 0:00:10]} 19. Bb2 {[%emt 0:00:06]} c5 $1 {[%emt 0:00:51]} 20. dxc6 $1 {[%emt 0:00:04]} Nxc6 {[%emt 0:00:05]} 21. f4 {[%emt 0:00:07]} Rab8 {[%emt 0:02:31]} 22. Ba1 {[%emt 0:00:23]} Rxb1 {[%emt 0:05:11]} 23. Qxb1 {[%emt 0:00:05]} Rb8 {[%emt 0:00:04]} 24. Qc2 {[%emt 0:00:18]} Rc8 {[%emt 0:00:02][%cal Oc6b4]} 25. Qd2 {[%emt 0:01:33] Against Nb4} Qb7 {[%emt 0:00:03]} (25... Rb8 $11) 26. Rc1 {[%emt 0:03:09]} Qb5 {[%emt 0:00:07]} 27. Bh3 {[%emt 0:01:19]} Rd8 {[%emt 0:00:02]} 28. Qc2 {[%emt 0:01:34]} Bb7 {[%emt 0:00:01]} 29. Rb1 {[%emt 0:02:14]} Qa6 {[%emt 0:00:03]} 30. Kg1 {[%emt 0:01:03] White is more active.} Bc8 {[%emt 0:04:03]} 31. Bf1 {[%emt 0:01:33]} Bd7 {[%emt 0:01:52]} 32. Qc4 {[%emt 0:00:30]} Qa7 {[%emt 0:03:54]} 33. Rc1 {[%emt 0:05:56]} Qb6 {[%emt 0:06:36]} 34. Qd5 {[%emt 0:00:43]} Be8 {[%emt 0:00:02]} 35. Rc4 {[%emt 0:03:07]} Qb1 {[%emt 0:03:00]} 36. Bxd4 {[%emt 0:00:24]} Nxd4 {[%emt 0:00:27]} 37. Qxd4 {[%emt 0:00:52]} (37. Rxd4 Qb6 38. Kh1 Bc6 $17) 37... h6 {[%emt 0:01:23]} 38. Qc3 {[%emt 0:03:32]} ({White should try} 38. f5 $16) 38... Qb6+ {[%emt 0:00:40]} 39. d4 {[%emt 0:01:54]} Kf8 {[%emt 0:03:22]} (39... Bb5 $11 {keeps the balance.}) 40. Qe3 {[%emt 0:00:00]} (40. h4 $16) 40... Bb5 $11 {[%emt 0:00:00]} 41. Rc1 {[%emt 0:08:17] [#] aiming for Rb1.} Bxf1 {[%emt 0:06:12]} 42. Kxf1 {[%emt 0:00:05][%mdl 4096] Endgame KQR-KQR} Qb2 {[%emt 0:00:30]} 43. Kg1 {[%emt 0:01:22]} Rb8 {[%emt 0:01:24]} 44. e5 {[%emt 0:00:35]} (44. Qc3 {looks sharper.} Qe2 45. e5 dxe5 46. dxe5 a4 47. Re1) 44... dxe5 {[%emt 0:03:23] The position is equal.} 45. dxe5 {[%emt 0:00:20]} a4 {[%emt 0:05:05]} 46. Re1 {[%emt 0:13:52]} Qc2 {[%emt 0:05:54] [#] White must now prevent ...Rb2.} 47. Qd4 {[%emt 0:04:44] Strongly threatening Qd6+.} Kg8 {[%emt 0:00:32] And now ...Rb2 would win.} 48. e6 {[%emt 0:00:49]} fxe6 {[%emt 0:02:05] Threatens to win with ...Rb2.} 49. Qd6 {[%emt 0:00:17]} Rb1 {[%emt 0:07:21]} ({But not} 49... Rb2 50. Qxe6+ Kh8 51. Qe8+ Kh7 52. Qe4+ Qxe4 53. Rxe4 $16) 50. Rxb1 {[%emt 0:04:52] Really sharp!} Qxb1+ {[%emt 0:00:07] KQ-KQ} 51. Kf2 {[%emt 0:00:10]} Qe4 {[%emt 0:02:21]} 52. Qd8+ {[%emt 0:01:12]} Kf7 {[%emt 0:00:15]} 53. Qd7+ {[%emt 0:00:24]} Kg6 {[%emt 0:00:10]} 54. Qd2 {[%emt 0:00:15]} Qc4 {[%emt 0:06:17]} 55. Qe3 {[%emt 0:02:54]} Qc2+ {[%emt 0:00:06]} 56. Kf3 {[%emt 0:00:11]} Qb3 {[%emt 0:01:07]} 57. g4 {[%emt 0:01:00]} h5 {[%emt 0:00:05]} 58. h3 {[%emt 0:00:10]} h4 {[%emt 0:01:25]} 59. Kf2 {[%emt 0:00:21]} Qc2+ {[%emt 0:00:20]} 60. Qe2 {[%emt 0:01:08]} Qc5+ {[%emt 0:00:16]} 61. Qe3 {[%emt 0:00:06]} Qc4 {[%emt 0:00:24]} 62. Ke1 {[%emt 0:01:13]} Kf7 {[%emt 0:00:18]} 63. Kf2 {[%emt 0:00:52]} Kf8 {[%emt 0:02:53]} 64. Ke1 {[%emt 0:00:20]} Qd5 {[%emt 0:00:28]} 65. Ke2 {[%emt 0:00:34]} Qc4+ {[%emt 0:00:27]} 66. Ke1 {[%emt 0:00:12]} Ke7 {[%emt 0:00:49]} 67. f5 {[%emt 0:01:10]} Kf6 {[%emt 0:00:19]} 68. Qb6 {[%emt 0:01:28]} Qc1+ {[%emt 0:01:12]} 69. Kf2 {[%emt 0:00:19]} Qd2+ {[%emt 0:00:12]} 70. Kf1 {[%emt 0:00:30]} Qd3+ {[%emt 0:00:41]} 71. Kf2 {[%emt 0:00:06]} Qd2+ {[%emt 0:01:07]} 72. Kf3 {[%emt 0:00:19]} Qd3+ {[%emt 0:00:42]} 73. Kf2 {[%emt 0:00:12]} Qg3+ {[%emt 0:00:23]} 74. Ke2 {[%emt 0:00:07]} Qg2+ {[%emt 0:00:06]} 75. Kd1 {[%emt 0:00:36]} Qf3+ {[%emt 0:01:09]} 76. Ke1 {[%emt 0:00:51]} Qc3+ {[%emt 0:00:30]} 77. Kf2 {[%emt 0:00:12]} Qg3+ {[%emt 0:00:24] Weighted Error Value: White=0.09 (flawless) /Black=0.10 (very precise)} 1/2-1/2

[Event "79th LOTTO Polish-ch 2022"]
[Site "Kruszwica"]
[Date "2022.05.10"]
[Round "1.3"]
[White "Nasuta, Grzegorz"]
[Black "Piorun, Kacper"]
[Result "1/2-1/2"]
[ECO "C02"]
[WhiteElo "2511"]
[BlackElo "2635"]
[Annotator "TA"]
[PlyCount "156"]
[EventDate "2022.05.10"]
[EventType "k.o."]
[EventCountry "POL"]
[SourceTitle "playchess.com"]
[Source "ChessBase"]
[SourceQuality "1"]
[TimeControl "40/5400+30:1800+30"]

{[%evp 14,156,28,11,13,25,33,22,38,11,19,-25,0,-25,-17,-15,-16,-28,0,0,0,-7,5,0,0,0,16,-12,0,0,0,0,0,0,0,-76,0,-220,-220,-199,-220,-1086,-1065,-1124,-577,-718,-410,-410,-392,-363,-282,-415,-333,-563,-587,-572,-560,-593,-602,-584,-560,-466,-54,-169,-169,-170,-165,-425,-422,-400,-395,-802,-575,-536,-125,-149,-122,-140,-169,-182,-40,-43,-51,-53,0,0,0,0,0,0,0,0,0,0,0,-14,0,0,0,0,0,-32,0,0,0,0,0,0,0,0,0,0,0,0,0,0,0,0,0,0,0,0,0,0,0,0,0,0,0,0,0,0,0,0,0,0,0,0,0,0,0,0,0,0,0]} 1. e4 {[%emt 1:15:41]} e6 {[%emt 1:15:40]} 2. d4 {[%emt 0:00:21]} d5 {[%emt 0:00:21]} 3. e5 {[%emt 0:00:21]} c5 {[%emt 0:00:21]} 4. c3 {[%emt 0:00:21]} Nc6 {[%emt 0:00:21]} 5. Nf3 {[%emt 0:00:22]} Bd7 {[%emt 0:00:21]} 6. Be2 {[%emt 0:00:21]} Nge7 {[%emt 0:00:22]} 7. O-O {[%emt 0:00:23]} Ng6 {[%emt 0:00:21]} 8. g3 {[%emt 0:00:25]} f6 {[%emt 0:00:22] C02: French: Advance Variation.} 9. exf6 {[%emt 0:00:43]} Qxf6 {[%emt 0:00:22]} 10. Bg5 {[%emt 0:01:40]} Qf7 {[%emt 0:00:21]} 11. Nbd2 {[%emt 0:00:47]} cxd4 {[%emt 0:00:44]} (11... h6 $5 {[%cal Rh6g5]} 12. Be3 b6 $11) 12. cxd4 {[%emt 0:00:48]} Bd6 {[%emt 0:00:22] [#]} 13. Nb3 $146 {[%emt 0:01:25]} ({Predecessor:} 13. Rc1 O-O 14. Be3 h6 15. Qb3 Rab8 16. Rfe1 Nge7 17. a3 Nf5 18. Qd3 a5 19. Nb3 {0-1 (37) Henke,S-Ishar,B DESC email 2009}) 13... O-O {[%emt 0:00:26]} 14. Be3 {[%emt 0:02:41]} h6 {[%emt 0:00:37]} 15. Rc1 {[%emt 0:00:29]} e5 {[%emt 0:00:49]} 16. dxe5 {[%emt 0:00:46]} Ngxe5 {[%emt 0:00:29]} 17. Nxe5 {[%emt 0:00:27]} Bxe5 {[%emt 0:01:28]} 18. f4 {[%emt 0:01:48]} Bxb2 {[%emt 0:01:23]} 19. Rb1 {[%emt 0:01:10]} Ba3 {[%emt 0:03:32]} 20. Bf3 {[%emt 0:01:42]} Kh8 {[%emt 0:00:57]} 21. Bc5 {[%emt 0:01:26]} Bxc5+ {[%emt 0:00:28]} 22. Nxc5 {[%emt 0:00:21]} Bh3 {[%emt 0:01:37]} 23. Rxb7 {[%emt 0:01:05]} Qg6 {[%emt 0:00:26]} 24. Rf2 {[%emt 0:02:08]} (24. Bxd5 $2 Rad8 25. Qf3 (25. Rf2 $2 Na5 $19) 25... Bxf1 $19) (24. Bg2 $11 Bxg2 25. Kxg2) 24... Rab8 {[%emt 0:01:53]} ({Better is} 24... Rxf4 $1 $17 {aiming for ...Re8.} 25. Bh5 Rxf2 26. Bxg6 Raf8) 25. Rfb2 $2 {[%emt 0:01:16]} (25. Rxb8 $11 {and White is okay.} Rxb8 26. Nb3 (26. Bxd5 $2 Rb1 $19)) 25... Rxb7 $19 {[%emt 0:01:38]} 26. Rxb7 {[%emt 0:00:23]} Rxf4 $1 {[%emt 0:00:27]} 27. Qxd5 {[%emt 0:02:13]} (27. Rb2) 27... Rf5 {[%emt 0:03:11]} 28. Qe4 {[%emt 0:01:46] [#]} Qf6 $1 {[%emt 0:03:50][%cal Of6f8] White must now prevent ...Qf8!} 29. Nd7 {[%emt 0:01:07] [#] Prevents Qf8.} (29. Nd3 Rxf3) 29... Qd6 $1 {[%emt 0:00:55][%cal Of5f3]} 30. Rb1 {[%emt 0:00:51]} (30. g4 Re5 $1 31. Rb8+ (31. Qb1 $2 Re8 $19) 31... Qxb8 32. Nxb8 Rxe4 33. Nxc6 Ra4) 30... Rxf3 $1 {[%emt 0:00:52]} (30... Qxd7 31. Qxc6 Qd4+ 32. Kh1 $17) 31. Qxf3 {[%emt 0:00:29]} Qxd7 {[%emt 0:00:24]} ({Don't go for} 31... Bxd7 $2 32. Rd1 Qe7 33. Kh1 $19) 32. Rd1 {[%emt 0:00:24] Prevents Qd4+.} (32. Re1 {was forced.}) 32... Qe6 {[%emt 0:00:28][%cal Oc6d4]} 33. Qf2 {[%emt 0:00:29] Prevents Nd4.} (33. Qd3) 33... Qe4 {[%emt 0:00:36][%cal Oc6d4]} 34. Re1 {[%emt 0:00:32]} Qd5 {[%emt 0:00:22]} 35. Qc2 {[%emt 0:00:38] Hoping for Re8+.} Ne5 {[%emt 0:00:51]} 36. Qe4 {[%emt 0:00:21] [#]} Qxa2 {[%emt 0:00:37]} 37. Rd1 {[%emt 0:00:35] [#]} (37. Qb7 Qd2) 37... Nf7 {[%emt 0:00:33] Inhibits Rd8+.} (37... Ng6 $1 $19 {[%mdl 512]} 38. Re1 Kh7) 38. Qe8+ (38. g4 $1 $15) 38... Kh7 {[%csl Gh3][%cal Ra2g2]} 39. Qe4+ {[%emt 0:00:49]} g6 {[%emt 0:00:45] And now ...Qb2 would win.} 40. g4 $2 {[%emt 0:00:33]} (40. Qd5 {was the only defense.} Qxd5 41. Rxd5) 40... Qb3 {[%emt 0:00:45]} 41. Rd7 {[%emt 0:30:35]} Qb6+ {[%emt 0:30:26]} 42. Kh1 $2 {[%emt 0:00:31]} (42. Qd4 Qe6 43. Kf2 Bxg4 44. Rxa7) 42... Qf6 {[%emt 0:00:24][%cal Rf6f1]} 43. Rd1 {[%emt 0:00:33] Prevents Qf1+.} h5 $2 {[%emt 0:00:40]} (43... a5 $19 44. Kg1 Qb6+ 45. Kh1 Qf2) 44. gxh5 $17 {[%emt 0:00:22]} Bf5 {[%emt 0:00:21]} 45. hxg6+ {[%emt 0:00:26]} Bxg6 {[%emt 0:00:21]} ({Don't play} 45... Qxg6 $6 46. Qh4+ Qh6 47. Qxh6+ Nxh6 48. Ra1 $11) 46. Qe3 {[%emt 0:00:37] [#]} a6 {[%emt 0:00:28]} (46... Ng5 $1 $19 {...Be4+ is the strong threat.} 47. Kg2 Be4+ 48. Kg3 Kg6) 47. h3 $15 {[%emt 0:00:31]} Ng5 {[%emt 0:00:33] Strongly threatening ...Be4+.} 48. Rd7+ $1 {[%emt 0:00:24]} Nf7 {[%emt 0:00:27]} ({Black should play} 48... Kg8 $15 49. Kh2 Qb2+ 50. Kg1 Qa1+ 51. Kg2 Qf6) 49. Kh2 {[%emt 0:00:36]} Qb2+ {[%emt 0:00:25]} 50. Rd2 {[%emt 0:00:22]} Qb8+ {[%emt 0:00:22]} 51. Qg3 {[%emt 0:00:33]} Qb6 52. Qh4+ {[%emt 0:00:31]} Kg8 {[%emt 0:00:55]} 53. Qg3 {[%emt 0:00:24]} Kh7 {[%emt 0:00:49]} 54. Rf2 {[%emt 0:00:45]} Qd4 {[%emt 0:00:33]} 55. Rf4 {[%emt 0:00:24]} Qd2+ {[%emt 0:00:35]} 56. Rf2 {[%emt 0:00:21]} Qd8 {[%emt 0:00:26]} ({But not} 56... Qh6 $6 57. Rf4 $17) 57. Qf4 {[%emt 0:00:29]} Ng5 {[%emt 0:00:43]} 58. Rg2 {[%emt 0:00:33] The position is equal.} Ne6 {[%emt 0:00:30]} 59. Qe5 {[%emt 0:00:21]} Nd4 {[%emt 0:00:31] ( -> ...Nf3+)} 60. Rf2 {[%emt 0:00:30] Against Nf3+} Nc6 {[%emt 0:00:29]} 61. Qf4 {[%emt 0:00:29]} Qe7 {[%emt 0:00:26]} 62. Qf6 {[%emt 0:00:50]} Qc5 {[%emt 0:00:35]} 63. Qh4+ {[%emt 0:00:23]} Kg8 {[%emt 0:00:21]} 64. Qf6 {[%emt 0:00:33]} Qe5+ {[%emt 0:00:36]} 65. Qxe5 {[%emt 0:00:25]} Nxe5 {[%emt 0:00:21]} 66. Ra2 {[%emt 0:00:24]} Bd3 {[%emt 0:00:22]} 67. Kg3 {[%emt 0:00:20]} Kf7 {[%emt 0:00:23]} 68. Kf4 {[%emt 0:00:22]} Kf6 {[%emt 0:00:39]} 69. Ke3 {[%emt 0:00:29]} Bb5 70. Kd4 {[%emt 0:00:25]} Nd7 {[%emt 0:01:09]} 71. Kd5 {[%emt 0:00:51]} Kg5 {[%emt 0:00:40]} 72. Kd6 {[%emt 0:00:21]} Nf6 {[%emt 0:00:30]} 73. Kc5 {[%emt 0:00:35]} Bd3 {[%emt 0:00:24]} 74. Ra3 {[%emt 0:00:25]} Be2 {[%emt 0:00:31]} (74... a5 $5) 75. Kb6 {[%emt 0:00:27]} Nd5+ {[%emt 0:00:31]} 76. Kc5 {[%emt 0:00:32]} Nf6 {[%emt 0:00:30]} 77. Kb6 {[%emt 0:00:30]} Nd7+ {[%emt 0:00:24]} 78. Ka7 {[%emt 0:00:43]} Bb5 {[%emt 0:00:36] White happily takes the draw.  Weighted Error Value: White=0.55/Black=0.61} 1/2-1/2

[Event "79th LOTTO Polish-ch 2022"]
[Site "Kruszwica"]
[Date "2022.05.10"]
[Round "1.4"]
[White "Piorun, Kacper"]
[Black "Nasuta, Grzegorz"]
[Result "1/2-1/2"]
[ECO "A06"]
[WhiteElo "2635"]
[BlackElo "2511"]
[Annotator "TA"]
[PlyCount "98"]
[EventDate "2022.05.10"]
[EventType "k.o."]
[EventCountry "POL"]
[SourceTitle "playchess.com"]
[Source "ChessBase"]
[SourceQuality "1"]
[TimeControl "40/5400+30:1800+30"]

{[%evp 9,98,10,7,0,6,19,19,-19,-18,-14,-11,-24,-22,-9,0,-33,-14,-39,-19,-21,-26,-22,-30,-55,-45,-67,-57,-75,-72,-95,-57,-72,-44,-45,-18,-32,-33,-62,-57,-57,-52,-109,-64,-168,-168,-162,-108,-110,-106,-102,-104,-113,-122,-106,-86,-95,-89,-116,-56,-87,-85,-88,-43,-35,-33,-35,-31,-39,-11,-12,-8,-10,-10,-13,-20,-30,0,0,0,0,0,-2,-2,-3,0,0,0,-7,0,0,0]} 1. Nf3 {[%emt 1:15:41]} d5 {[%emt 1:15:41]} 2. g3 {[%emt 0:00:21]} Bg4 {[%emt 0:00:21]} 3. Bg2 {[%emt 0:00:21]} e6 {[%emt 0:00:22]} 4. c4 {[%emt 0:00:22]} c6 {[%emt 0:00:21]} 5. cxd5 {[%emt 0:00:21]} exd5 {[%emt 0:00:22]} 6. Qb3 {[%emt 0:00:23] A11: English Opening: 1...c6.} Qc7 {[%emt 0:01:10]} 7. d3 {[%emt 0:00:24] [#]} Nd7 $146 {[%emt 0:00:35]} ({Predecessor:} 7... f5 8. Bf4 Qe7 9. O-O Nf6 10. Nd4 g6 11. h3 Bh5 12. e4 dxe4 13. dxe4 Na6 14. exf5 {½-½ (38) Pokrupa,M (2160)-Justi,F (1891) Nuremberg 2009}) 8. h3 {[%emt 0:00:32]} Nc5 {[%emt 0:01:13]} 9. Qc2 {[%emt 0:00:21]} Bxf3 {[%emt 0:00:30]} 10. Bxf3 {[%emt 0:00:22]} Ne6 {[%emt 0:00:21]} 11. Bg2 {[%emt 0:00:21]} h5 {[%emt 0:00:59][%cal Bh7h5,Bh5h4][%mdl 32]} 12. Nc3 {[%emt 0:01:26]} h4 {[%emt 0:00:25]} 13. g4 {[%emt 0:00:22]} Nf6 {[%emt 0:00:34][%cal Bg8f6,Bf6d5,Bd5f4][%mdl 32]} 14. Bd2 {[%emt 0:00:35]} d4 {[%emt 0:01:29]} 15. Ne4 {[%emt 0:00:31]} Nd5 {[%emt 0:00:21]} 16. a3 {[%emt 0:00:35]} Be7 {[%emt 0:00:42]} 17. Bf3 {[%emt 0:00:54]} Qe5 {[%emt 0:03:03]} 18. Rg1 {[%emt 0:01:45]} Ndf4 {[%emt 0:00:58]} 19. Rh1 {[%emt 0:00:58]} g6 {[%emt 0:00:55]} 20. O-O-O {[%emt 0:00:45]} O-O-O {[%emt 0:02:30]} (20... Nd5 $5 {[%cal Rf7f5]} 21. Rhg1 O-O-O $11) 21. Kb1 {[%emt 0:00:46]} Nd5 {[%emt 0:01:13]} 22. Bc1 {[%emt 0:00:38]} Kb8 {[%emt 0:00:28]} 23. Nd2 {[%emt 0:02:55]} Bg5 {[%emt 0:00:40]} 24. Nc4 {[%emt 0:00:21]} Qc7 {[%emt 0:00:24]} 25. Qb3 {[%emt 0:00:43]} (25. Bxd5 $15 Rxd5 26. e4) 25... Rhe8 {[%emt 0:00:30]} 26. e3 {[%emt 0:01:24]} (26. Nd2 $15) 26... dxe3 $1 $19 {[%emt 0:00:24]} 27. fxe3 {[%emt 0:01:01] [#]} Nc5 {[%emt 0:03:15] Pair of Knights!} (27... Nxe3 $1 $19 {[%mdl 512]} 28. Nxe3 (28. Bxe3 $2 Bxe3 29. Qc3 Bd4 $19) 28... Nd4) 28. Qc2 $17 {[%emt 0:00:26]} Nxe3 {[%emt 0:00:25]} 29. Nxe3 {[%emt 0:03:29]} Bxe3 {[%emt 0:00:21]} 30. d4 {[%emt 0:00:21]} Bxc1 {[%emt 0:00:23]} 31. Qxc5 {[%emt 0:01:34]} Be3 {[%emt 0:01:45]} 32. Rd3 {[%emt 0:02:01]} Re6 {[%emt 0:01:19]} 33. Rhd1 {[%emt 0:02:13] [#]} Qf4 {[%emt 0:02:03]} (33... Qg3 $1 $17 {[%cal Rg3f3]} 34. Be2 Qf2) 34. Bh1 {[%emt 0:00:46]} Red6 {[%emt 0:00:39]} 35. Qb4 {[%emt 0:01:09]} Bxd4 {[%emt 0:01:00] aiming for ...R8d7.} (35... R8d7 {seems wilder.} 36. d5 Qxb4 37. axb4 Bf4) 36. Bxc6 $1 {[%emt 0:00:58]} Rxc6 37. Rxd4 {[%emt 0:00:21]} Rxd4 {[%emt 0:01:05]} 38. Rxd4 {[%emt 0:00:23][%mdl 4096] Endgame KQR-KQR} Qf1+ {[%emt 0:00:28]} 39. Ka2 {[%emt 0:00:22]} Qf6 {[%emt 0:00:26]} 40. Re4 {[%emt 0:00:44]} a6 {[%emt 0:00:31]} 41. Re8+ $1 {[%emt 0:30:40]} ({Don't play} 41. Re7 Rb6 42. Re8+ Ka7 $17) 41... Ka7 {[%emt 0:30:30]} 42. Qf8 $1 {[%emt 0:00:34]} Qf4 {[%emt 0:00:34]} 43. Ra8+ {[%emt 0:00:35] The position is equal.} Kb6 {[%emt 0:00:21]} 44. Qd8+ {[%emt 0:00:32]} Rc7 {[%emt 0:00:36]} 45. Qxh4 {[%emt 0:00:28]} Qc4+ {[%emt 0:00:24]} 46. Ka1 {[%emt 0:00:31]} Qc1+ 47. Ka2 Qc4+ {[%emt 0:00:53]} 48. Ka1 {[%emt 0:00:41]} Qf1+ {[%emt 0:00:47]} 49. Ka2 {[%emt 0:00:23]} Qc4+ {[%emt 0:00:27] Whites escaped into a draw.  Weighted Error Value: White=0.12 (very precise) /Black=0.11 (very precise)} 1/2-1/2

[Event "79th LOTTO Polish-ch 2022"]
[Site "Kruszwica"]
[Date "2022.05.09"]
[Round "1.4"]
[White "Moranda, Wojciech"]
[Black "Kosakowski, Jakub"]
[Result "1-0"]
[ECO "B90"]
[WhiteElo "2630"]
[BlackElo "2435"]
[Annotator "TA"]
[PlyCount "81"]
[EventDate "2022.05.10"]
[EventType "k.o."]
[EventCountry "POL"]
[SourceTitle "playchess.com"]
[Source "ChessBase"]
[SourceQuality "1"]
[TimeControl "40/5400+30:1800+30"]

{[%evp 11,81,-22,2,0,24,20,26,25,31,35,24,6,13,12,25,18,26,0,18,31,38,45,45,48,72,66,66,77,81,77,83,72,83,75,103,100,110,112,196,147,256,244,236,235,250,237,533,620,626,608,592,539,860,613,1659,1656,1025,403,1333,1210,1550,1506,1496,1456,1467,598,597,591,582,567,470,375]} 1. e4 {[%emt 0:00:04]} c5 {[%emt 0:00:39]} 2. Nf3 {[%emt 0:00:05]} d6 {[%emt 0:00:41]} 3. d4 {[%emt 0:00:06]} cxd4 {[%emt 0:00:20]} 4. Nxd4 {[%emt 0:00:04]} Nf6 {[%emt 0:00:14]} 5. Nc3 {[%emt 0:00:05]} a6 {[%emt 0:00:11]} 6. Rg1 {[%emt 0:00:09]} e5 {[%emt 0:01:29]} 7. Nb3 {[%emt 0:00:31] B90: Sicilian Najdorf: Unusual White 6th moves, 6 Be3 Ng4 and 6 Be3 e5.} h5 {[%emt 0:04:44] Inhibits g4.} 8. h3 {[%emt 0:00:50]} h4 {[%emt 0:06:01]} 9. Be3 {[%emt 0:00:23] White has an edge.} Be6 {[%emt 0:00:49]} 10. Qd2 {[%emt 0:00:18]} Nbd7 {[%emt 0:01:47]} 11. f4 {[%emt 0:00:24]} Rc8 {[%emt 0:15:53]} 12. O-O-O {[%emt 0:00:47]} b5 {[%emt 0:02:44]} 13. Kb1 {[%emt 0:00:44]} Be7 {[%emt 0:03:58] [#]} 14. f5 $146 {[%emt 0:04:41]} ({Predecessor:} 14. a3 O-O 15. Bd3 exf4 16. Bxf4 Nh5 17. g3 Ne5 18. Nd4 hxg3 19. Bxg3 Bg5 20. Qg2 Nxg3 21. Qxg3 Rxc3 22. bxc3 {1-0 (48) Pridorozhni,A (2366)-Looshnikov,N (2409) Orsk 2001}) 14... Bc4 {[%emt 0:06:41][%cal Od6d5]} 15. a3 {[%emt 0:01:00]} Bxb3 {[%emt 0:11:01]} 16. cxb3 {[%emt 0:00:55]} Nc5 {[%emt 0:00:07]} 17. Bxc5 {[%emt 0:07:08]} Rxc5 {[%emt 0:00:59]} 18. b4 {[%emt 0:11:32]} Rc8 {[%emt 0:02:12]} 19. Be2 {[%emt 0:02:27]} Qb6 {[%emt 0:02:13]} 20. g4 {[%emt 0:07:11] Hoping for g5.} hxg3 {[%emt 0:00:14]} 21. Rxg3 {[%emt 0:00:12]} Rh7 {[%emt 0:05:50]} 22. Bf3 {[%emt 0:08:04]} Rc4 {[%emt 0:02:22]} 23. Qg2 {[%emt 0:02:18]} Bf8 {[%emt 0:06:18]} 24. Be2 {[%emt 0:02:27]} Rd4 {[%emt 0:00:29]} (24... Rc8 $16) 25. Rxd4 {[%emt 0:07:16]} (25. Rc1 $1 $18) 25... Qxd4 {[%emt 0:01:34]} (25... exd4 $16 26. Nd5 Qb7) 26. Rd3 $18 {[%emt 0:03:08]} Qb6 {[%emt 0:01:06] [#]} 27. Bd1 $1 {[%emt 0:10:42] Strongly threatening Bb3.} Be7 {[%emt 0:18:46]} 28. Bb3 {[%emt 0:01:47] aiming for Nd5.} a5 $2 {[%emt 0:00:13]} (28... Qb7 29. Nd5 Nh5) 29. Nd5 {[%emt 0:07:12]} Nxd5 {[%emt 0:00:15]} 30. bxa5 {[%emt 0:00:13]} ({Not} 30. Rxd5 axb4 31. axb4 Kf8 $16) 30... Qxa5 {[%emt 0:01:43]} 31. Bxd5 {[%emt 0:00:27] Black must now prevent Rc3.} b4 {[%emt 0:03:43] Against Rc3} 32. Qc2 {[%emt 0:03:43]} Qa6 {[%emt 0:00:42]} 33. axb4 {[%emt 0:00:34]} Bd8 {[%emt 0:00:20]} 34. Bc6+ {[%emt 0:04:10]} (34. Ra3 $142 Qb6 35. Qa4+ Ke7 {[#]} 36. Bxf7 $1 {[%mdl 512]}) 34... Ke7 {[%emt 0:00:16] [#]} (34... Kf8 $142 35. Ra3 Qb6) 35. Rxd6 $3 {[%emt 0:00:57][%mdl 512] White threatens Qc5 and mate. White is clearly winning.} Bb6 {[%emt 0:00:41] Inhibits Qc5.} (35... Bc7 36. Rd7+) 36. Rd7+ {[%emt 0:02:13]} Kf6 {[%emt 0:00:06]} 37. b5 {[%emt 0:09:27]} Qa5 {[%emt 0:00:14]} 38. Qc3 {[%emt 0:01:20]} (38. Qc1 $142 {Bd5 is the strong threat.} g5 39. Bd5 Qxb5 40. Qc8 Qf1+ 41. Ka2) 38... Qxc3 {[%emt 0:01:19]} 39. bxc3 {[%emt 0:00:03]} Rxh3 {[%emt 0:00:32]} 40. Bd5 {[%emt 0:00:00]} Kg5 {[%emt 0:00:00]} 41. Rxf7 {[%emt 0:01:33] Weighted Error Value: White=0.42/Black=0.28 (precise)} 1-0